[Event "*** SCC Grand Prix: Titled Tuesday Blitz"]
[Site "Chess.com"]
[Date "2020.08.25"]
[Round "7"]
[White "Onegust"]
[Black "Jumbo"]
[Result "1-0"]
[WhiteElo "2583"]
[BlackElo "2774"]
[TimeControl "180+1"]
[EndTime "11:19:33 PDT"]
[Termination "Onegust won on time"]

1. e4 {[%clk 0:03:00.1]} 1... c5 {[%clk 0:02:58.8]} 2. Nf3 {[%clk 0:03:00.4]}
2... d6 {[%clk 0:02:59.7]} 3. d4 {[%clk 0:03:00.4]} 3... cxd4 {[%clk 0:03:00.6]}
4. Nxd4 {[%clk 0:03:01.3]} 4... Nf6 {[%clk 0:03:01]} 5. Nc3 {[%clk 0:03:01.9]}
5... a6 {[%clk 0:03:00.6]} 6. Bg5 {[%clk 0:03:02.1]} 6... e6 {[%clk 0:02:59.7]}
7. f4 {[%clk 0:03:01.4]} 7... Qc7 {[%clk 0:02:58.4]} 8. Bxf6 {[%clk 0:02:59.2]}
8... gxf6 {[%clk 0:02:59.3]} 9. Qf3 {[%clk 0:02:56.9]} 9... b5 {[%clk
0:02:59.3]} 10. O-O-O {[%clk 0:02:55.7]} 10... b4 {[%clk 0:02:54.5]} 11. Nce2
{[%clk 0:02:51.7]} 11... Nd7 {[%clk 0:02:52.6]} 12. Kb1 {[%clk 0:02:50.1]} 12...
h5 {[%clk 0:02:34.9]} 13. g3 {[%clk 0:02:39.2]} 13... Rb8 {[%clk 0:02:22.9]} 14.
Bh3 {[%clk 0:02:37]} 14... Nc5 {[%clk 0:02:19]} 15. Nb3 {[%clk 0:02:27.6]} 15...
Na4 {[%clk 0:02:12.8]} 16. Rhe1 {[%clk 0:02:21.1]} 16... Be7 {[%clk 0:02:03.4]}
17. Ned4 {[%clk 0:02:01.4]} 17... Bd7 {[%clk 0:02:01.3]} 18. g4 {[%clk
0:01:53.2]} 18... hxg4 {[%clk 0:01:59.2]} 19. Bxg4 {[%clk 0:01:54.1]} 19... Rc8
{[%clk 0:01:22.2]} 20. Re2 {[%clk 0:01:38.3]} 20... Qb6 {[%clk 0:01:14]} 21. Bh5
{[%clk 0:01:29.7]} 21... Kf8 {[%clk 0:01:12.1]} 22. Rg2 {[%clk 0:01:26.6]} 22...
Ke8 {[%clk 0:00:21.1]} 23. Rg7 {[%clk 0:01:08.5]} 23... Kd8 {[%clk 0:00:09.4]}
24. Bxf7 {[%clk 0:01:04.2]} 24... Rxh2 {[%clk 0:00:08.7]} 25. Bxe6 {[%clk
0:01:04.5]} 25... Rcxc2 {[%clk 0:00:03.3]} 26. Nxc2 {[%clk 0:00:36.2]} 26...
Bxe6 {[%clk 0:00:03.5]} 27. e5 {[%clk 0:00:35.8]} 27... fxe5 {[%clk 0:00:01.9]}
28. fxe5 {[%clk 0:00:31.6]} 28... Kd7 {[%clk 0:00:01.1]} 29. Rxe7+ {[%clk
0:00:27]} 1-0

[Event "*** SCC Grand Prix: Titled Tuesday Blitz"]
[Site "Chess.com"]
[Date "2020.08.25"]
[Round "7"]
[White "isainz"]
[Black "googlegoom"]
[Result "0-1"]
[WhiteElo "2133"]
[BlackElo "2449"]
[TimeControl "180+1"]
[EndTime "11:19:34 PDT"]
[Termination "googlegoom won by resignation"]

1. e4 {[%clk 0:03:00.9]} 1... c5 {[%clk 0:02:59.9]} 2. Nf3 {[%clk 0:03:00.7]}
2... Nc6 {[%clk 0:03:00.4]} 3. d4 {[%clk 0:03:00.7]} 3... cxd4 {[%clk
0:03:01.3]} 4. Nxd4 {[%clk 0:03:00.8]} 4... Qb6 {[%clk 0:03:01.9]} 5. Nb3 {[%clk
0:02:59.8]} 5... Nf6 {[%clk 0:03:02]} 6. Nc3 {[%clk 0:02:57.4]} 6... e6 {[%clk
0:03:02.1]} 7. Bd3 {[%clk 0:02:42.9]} 7... d6 {[%clk 0:03:02]} 8. Be3 {[%clk
0:02:40]} 8... Qc7 {[%clk 0:03:02.1]} 9. f4 {[%clk 0:02:37.1]} 9... a6 {[%clk
0:03:02.3]} 10. Qf3 {[%clk 0:02:33.6]} 10... b5 {[%clk 0:03:02.2]} 11. g4 {[%clk
0:02:30.8]} 11... Bb7 {[%clk 0:02:59.7]} 12. g5 {[%clk 0:02:28.7]} 12... Nd7
{[%clk 0:03:00.1]} 13. O-O-O {[%clk 0:02:26.9]} 13... Na5 {[%clk 0:02:51.6]} 14.
Kb1 {[%clk 0:02:22.6]} 14... Nc4 {[%clk 0:02:45.2]} 15. Bxc4 {[%clk 0:02:14.3]}
15... Qxc4 {[%clk 0:02:43.5]} 16. Na5 {[%clk 0:02:10.5]} 16... Qc7 {[%clk
0:02:43.7]} 17. Nxb7 {[%clk 0:02:09.3]} 17... Qxb7 {[%clk 0:02:44.6]} 18. Bd4
{[%clk 0:02:03.2]} 18... b4 {[%clk 0:02:34.2]} 19. Ne2 {[%clk 0:02:02]} 19... e5
{[%clk 0:02:27.7]} 20. Be3 {[%clk 0:01:56.1]} 20... Be7 {[%clk 0:01:38.6]} 21.
Rhf1 {[%clk 0:01:52.6]} 21... a5 {[%clk 0:01:19.1]} 22. Ng3 {[%clk 0:01:45.9]}
22... g6 {[%clk 0:01:17.8]} 23. f5 {[%clk 0:01:42.7]} 23... Rf8 {[%clk
0:01:08.8]} 24. f6 {[%clk 0:01:39.6]} 24... Bd8 {[%clk 0:01:08.7]} 25. Rxd6
{[%clk 0:01:39.5]} 25... Bc7 {[%clk 0:01:04]} 26. Rd2 {[%clk 0:01:33.5]} 26...
O-O-O {[%clk 0:01:03]} 27. Rfd1 {[%clk 0:01:32.5]} 27... Nb6 {[%clk 0:01:01.7]}
28. Bxb6 {[%clk 0:01:05.7]} 28... Bxb6 {[%clk 0:01:01.7]} 29. Rxd8+ {[%clk
0:01:03.2]} 29... Rxd8 {[%clk 0:01:01.4]} 30. Rxd8+ {[%clk 0:01:01.3]} 30...
Kxd8 {[%clk 0:00:59.3]} 31. Qd3+ {[%clk 0:00:59.4]} 31... Kc8 {[%clk 0:00:55.3]}
32. Qd6 {[%clk 0:00:54.2]} 32... Qd7 {[%clk 0:00:41.2]} 33. Qxd7+ {[%clk
0:00:45.6]} 33... Kxd7 {[%clk 0:00:42.1]} 34. Nf1 {[%clk 0:00:45.3]} 34... Bf2
{[%clk 0:00:32.9]} 35. Ng3 {[%clk 0:00:18.7]} 35... Be3 {[%clk 0:00:29.8]} 36.
h4 {[%clk 0:00:15.5]} 36... Bf2 {[%clk 0:00:29.7]} 37. h5 {[%clk 0:00:11.2]}
37... Bxg3 {[%clk 0:00:27.7]} 38. hxg6 {[%clk 0:00:11.5]} 38... hxg6 {[%clk
0:00:27.7]} 0-1

[Event "*** SCC Grand Prix: Titled Tuesday Blitz"]
[Site "Chess.com"]
[Date "2020.08.25"]
[Round "7"]
[White "ChessWarrior3"]
[Black "Djager97"]
[Result "0-1"]
[WhiteElo "2128"]
[BlackElo "2446"]
[TimeControl "180+1"]
[EndTime "11:19:34 PDT"]
[Termination "Djager97 won by resignation"]

1. e4 {[%clk 0:03:00.9]} 1... c5 {[%clk 0:02:59.8]} 2. Nf3 {[%clk 0:03:01.4]}
2... Nc6 {[%clk 0:02:59.7]} 3. d4 {[%clk 0:03:02]} 3... cxd4 {[%clk 0:03:00.6]}
4. Nxd4 {[%clk 0:03:02.2]} 4... Nf6 {[%clk 0:03:00.3]} 5. Nc3 {[%clk 0:03:01.8]}
5... d6 {[%clk 0:03:00.3]} 6. Bg5 {[%clk 0:02:55.7]} 6... e6 {[%clk 0:03:00.5]}
7. f4 {[%clk 0:02:55.6]} 7... a6 {[%clk 0:03:00.2]} 8. Nxc6 {[%clk 0:02:49.6]}
8... bxc6 {[%clk 0:02:59.9]} 9. e5 {[%clk 0:02:50.1]} 9... dxe5 {[%clk
0:02:47.1]} 10. Qxd8+ {[%clk 0:02:48.5]} 10... Kxd8 {[%clk 0:02:48]} 11. fxe5
{[%clk 0:02:47.8]} 11... h6 {[%clk 0:02:48.6]} 12. O-O-O+ {[%clk 0:02:46.9]}
12... Kc7 {[%clk 0:02:46]} 13. Bxf6 {[%clk 0:02:34]} 13... gxf6 {[%clk
0:02:44.5]} 14. exf6 {[%clk 0:02:34.9]} 14... h5 {[%clk 0:02:00.2]} 15. g3
{[%clk 0:02:31.3]} 15... Bd7 {[%clk 0:01:14.4]} 16. Bg2 {[%clk 0:02:28]} 16...
h4 {[%clk 0:01:07.2]} 17. Rd3 {[%clk 0:02:19.7]} 17... hxg3 {[%clk 0:01:00]} 18.
Rxg3 {[%clk 0:02:20]} 18... Bh6+ {[%clk 0:00:55.9]} 19. Kb1 {[%clk 0:02:18.4]}
19... Rag8 {[%clk 0:00:56.6]} 20. a3 {[%clk 0:02:12.2]} 20... Bf4 {[%clk
0:00:56.2]} 21. Rxg8 {[%clk 0:02:07.6]} 21... Rxg8 {[%clk 0:00:57.1]} 22. Be4
{[%clk 0:02:07]} 22... Be5 {[%clk 0:00:54.1]} 23. Rf1 {[%clk 0:02:01.7]} 23...
Bxh2 {[%clk 0:00:50.1]} 24. Na4 {[%clk 0:02:01.3]} 24... Rg1 {[%clk 0:00:46.3]}
25. Rxg1 {[%clk 0:01:51.1]} 25... Bxg1 {[%clk 0:00:47.2]} 26. b4 {[%clk
0:01:50.1]} 26... Bd4 {[%clk 0:00:45.1]} 27. Nc5 {[%clk 0:01:49.3]} 27... Bc8
{[%clk 0:00:40.2]} 28. Bd3 {[%clk 0:01:46.4]} 28... a5 {[%clk 0:00:29]} 29. Ne4
{[%clk 0:01:41.6]} 29... axb4 {[%clk 0:00:25]} 30. axb4 {[%clk 0:01:42.5]} 30...
Be5 {[%clk 0:00:17.7]} 31. c4 {[%clk 0:01:39.4]} 31... c5 {[%clk 0:00:15.5]} 32.
Nxc5 {[%clk 0:01:34.5]} 32... Bxf6 {[%clk 0:00:14.9]} 33. b5 {[%clk 0:01:34.7]}
33... Be7 {[%clk 0:00:14.1]} 34. Ne4 {[%clk 0:01:30.3]} 34... Bb7 {[%clk
0:00:13.7]} 35. Kc2 {[%clk 0:01:28.7]} 35... f5 {[%clk 0:00:13.2]} 36. Ng5
{[%clk 0:01:27.9]} 36... Bxg5 {[%clk 0:00:13.1]} 37. Kc3 {[%clk 0:01:26.7]}
37... Kb6 {[%clk 0:00:12]} 38. Kb4 {[%clk 0:01:26.5]} 38... Be7+ {[%clk
0:00:12.2]} 39. Kb3 {[%clk 0:01:25.7]} 39... Kc5 {[%clk 0:00:13.1]} 40. Kc3
{[%clk 0:01:24.9]} 40... f4 {[%clk 0:00:13.4]} 41. Kb3 {[%clk 0:01:22.6]} 41...
e5 {[%clk 0:00:13.6]} 42. Kc3 {[%clk 0:01:21.3]} 42... e4 {[%clk 0:00:14.2]} 43.
Bf1 {[%clk 0:01:21.2]} 43... f3 {[%clk 0:00:13]} 44. Kd2 {[%clk 0:01:20.2]}
44... Bg5+ {[%clk 0:00:12.8]} 45. Ke1 {[%clk 0:01:17.6]} 45... e3 {[%clk
0:00:12.9]} 46. Bd3 {[%clk 0:01:15.9]} 46... Bh4+ {[%clk 0:00:11.2]} 47. Kf1
{[%clk 0:01:16.1]} 47... Bc8 {[%clk 0:00:11.2]} 48. b6 {[%clk 0:01:11.6]} 48...
Kxb6 {[%clk 0:00:10.7]} 49. Be4 {[%clk 0:01:04.4]} 49... e2+ {[%clk 0:00:10.6]}
50. Kg1 {[%clk 0:01:03.3]} 50... e1=Q+ {[%clk 0:00:11]} 51. Kh2 {[%clk
0:01:02.8]} 51... Qg3+ {[%clk 0:00:11.3]} 0-1

[Event "*** SCC Grand Prix: Titled Tuesday Blitz"]
[Site "Chess.com"]
[Date "2020.08.25"]
[Round "7"]
[White "Grootneus"]
[Black "krasavetc"]
[Result "1-0"]
[WhiteElo "2185"]
[BlackElo "2278"]
[TimeControl "180+1"]
[EndTime "11:19:35 PDT"]
[Termination "Grootneus won by resignation"]

1. e4 {[%clk 0:03:00.9]} 1... e6 {[%clk 0:03:00.9]} 2. d4 {[%clk 0:03:00.5]}
2... d5 {[%clk 0:03:00.2]} 3. Nc3 {[%clk 0:03:00.4]} 3... Nf6 {[%clk 0:02:58.4]}
4. Bg5 {[%clk 0:02:59.4]} 4... Be7 {[%clk 0:02:57.4]} 5. e5 {[%clk 0:02:59.4]}
5... Nfd7 {[%clk 0:02:56.4]} 6. h4 {[%clk 0:03:00]} 6... h6 {[%clk 0:02:53.2]}
7. Bxe7 {[%clk 0:02:59.2]} 7... Qxe7 {[%clk 0:02:52.4]} 8. Qg4 {[%clk
0:02:59.7]} 8... g6 {[%clk 0:02:44.7]} 9. Nf3 {[%clk 0:02:55.4]} 9... a6 {[%clk
0:02:42.6]} 10. O-O-O {[%clk 0:02:45.7]} 10... c5 {[%clk 0:02:33.1]} 11. dxc5
{[%clk 0:02:46.6]} 11... Nc6 {[%clk 0:02:26.5]} 12. Qf4 {[%clk 0:02:29.2]} 12...
Qxc5 {[%clk 0:02:17.1]} 13. Bd3 {[%clk 0:02:15.8]} 13... b5 {[%clk 0:02:08.8]}
14. Kb1 {[%clk 0:02:09.5]} 14... Rb8 {[%clk 0:01:58.3]} 15. Nxd5 {[%clk
0:02:02.8]} 15... exd5 {[%clk 0:01:15.4]} 16. e6 {[%clk 0:02:03]} 16... fxe6
{[%clk 0:01:14]} 17. Bxg6+ {[%clk 0:02:01.3]} 17... Kd8 {[%clk 0:01:13.4]} 18.
Rhe1 {[%clk 0:01:58.5]} 18... Rf8 {[%clk 0:00:54.4]} 19. Qxh6 {[%clk 0:01:58]}
19... e5 {[%clk 0:00:39.6]} 20. Qg5+ {[%clk 0:01:25.7]} 20... Qe7 {[%clk
0:00:23.8]} 21. Qg3 {[%clk 0:01:19.2]} 21... d4 {[%clk 0:00:15.6]} 22. Nxd4
{[%clk 0:01:05.5]} 22... Qf6 {[%clk 0:00:11.8]} 23. Nxc6+ {[%clk 0:00:52.5]}
23... Qxc6 {[%clk 0:00:12.7]} 24. Qxe5 {[%clk 0:00:50.9]} 24... Rb6 {[%clk
0:00:08]} 25. Qe7+ {[%clk 0:00:44.3]} 25... Kc7 {[%clk 0:00:08.2]} 26. Be4
{[%clk 0:00:45]} 26... Qf6 {[%clk 0:00:04]} 27. Qb4 {[%clk 0:00:24]} 27... Qxf2
{[%clk 0:00:02.6]} 28. Qc3+ {[%clk 0:00:20.8]} 28... Qc5 {[%clk 0:00:02.5]} 29.
Rxd7+ {[%clk 0:00:20.5]} 1-0

[Event "*** SCC Grand Prix: Titled Tuesday Blitz"]
[Site "Chess.com"]
[Date "2020.08.25"]
[Round "7"]
[White "giantslayer83"]
[Black "ARTHURMOTIVATOR"]
[Result "1-0"]
[WhiteElo "2698"]
[BlackElo "2275"]
[TimeControl "180+1"]
[EndTime "11:19:37 PDT"]
[Termination "giantslayer83 won on time"]

1. c4 {[%clk 0:03:00.9]} 1... e5 {[%clk 0:02:56.4]} 2. g3 {[%clk 0:03:01.2]}
2... Nc6 {[%clk 0:02:54]} 3. Bg2 {[%clk 0:03:01.3]} 3... g6 {[%clk 0:02:45.1]}
4. Nc3 {[%clk 0:03:00.8]} 4... Bg7 {[%clk 0:02:45.3]} 5. d3 {[%clk 0:03:01.3]}
5... d6 {[%clk 0:02:44.8]} 6. Nf3 {[%clk 0:02:59.8]} 6... Nf6 {[%clk 0:02:41]}
7. Bg5 {[%clk 0:02:59.2]} 7... h6 {[%clk 0:02:38.9]} 8. Bxf6 {[%clk 0:02:59]}
8... Qxf6 {[%clk 0:02:35.2]} 9. Rb1 {[%clk 0:02:58.1]} 9... a5 {[%clk
0:02:30.3]} 10. a3 {[%clk 0:02:57.7]} 10... O-O {[%clk 0:02:29.2]} 11. O-O
{[%clk 0:02:56.5]} 11... Qd8 {[%clk 0:02:18]} 12. b4 {[%clk 0:02:55.5]} 12...
axb4 {[%clk 0:02:16.7]} 13. axb4 {[%clk 0:02:56.4]} 13... Nd4 {[%clk 0:02:16]}
14. e3 {[%clk 0:02:52.7]} 14... Ne6 {[%clk 0:02:04.2]} 15. b5 {[%clk 0:02:50.3]}
15... f5 {[%clk 0:01:54]} 16. Nd5 {[%clk 0:02:46.2]} 16... f4 {[%clk 0:01:45.5]}
17. exf4 {[%clk 0:02:25.1]} 17... exf4 {[%clk 0:01:43.9]} 18. Re1 {[%clk
0:02:24.1]} 18... Kh8 {[%clk 0:01:33.2]} 19. Nh4 {[%clk 0:02:15.1]} 19... Qg5
{[%clk 0:00:51.9]} 20. Ne7 {[%clk 0:02:00.7]} 20... fxg3 {[%clk 0:00:40.6]} 21.
Nhxg6+ {[%clk 0:01:35.7]} 21... Kh7 {[%clk 0:00:37.5]} 22. Nxf8+ {[%clk
0:01:35.8]} 22... Bxf8 {[%clk 0:00:31.3]} 23. Be4+ {[%clk 0:01:35.4]} 23... Kh8
{[%clk 0:00:20.3]} 24. Ng6+ {[%clk 0:01:35]} 24... Kg7 {[%clk 0:00:20.5]} 25.
hxg3 {[%clk 0:01:35.1]} 25... Ra2 {[%clk 0:00:16.2]} 26. Nxf8 {[%clk 0:01:34.3]}
26... Nf4 {[%clk 0:00:09.5]} 27. Bg2 {[%clk 0:00:46.3]} 27... Bh3 {[%clk
0:00:06.3]} 28. Ne6+ {[%clk 0:00:41]} 28... Bxe6 {[%clk 0:00:03.9]} 29. gxf4
{[%clk 0:00:40.1]} 29... Qh4 {[%clk 0:00:03.6]} 30. Qf3 {[%clk 0:00:39.7]} 30...
Bg4 {[%clk 0:00:03.6]} 31. Qg3 {[%clk 0:00:39.8]} 31... Qh5 {[%clk 0:00:01.3]}
32. f3 {[%clk 0:00:38.7]} 32... Qc5+ {[%clk 0:00:01.3]} 33. d4 {[%clk
0:00:31.6]} 33... Qxd4+ {[%clk 0:00:01.2]} 34. Kh1 {[%clk 0:00:32.1]} 1-0

[Event "*** SCC Grand Prix: Titled Tuesday Blitz"]
[Site "Chess.com"]
[Date "2020.08.25"]
[Round "7"]
[White "Volodar_Murzin"]
[Black "chenxiaoyuer"]
[Result "0-1"]
[WhiteElo "2629"]
[BlackElo "2445"]
[TimeControl "180+1"]
[EndTime "11:19:38 PDT"]
[Termination "chenxiaoyuer won on time"]

1. e4 {[%clk 0:03:00.9]} 1... c5 {[%clk 0:02:59.4]} 2. Nf3 {[%clk 0:03:00]} 2...
d6 {[%clk 0:02:58.8]} 3. d4 {[%clk 0:02:59.3]} 3... cxd4 {[%clk 0:02:58.3]} 4.
Nxd4 {[%clk 0:03:00.2]} 4... Nf6 {[%clk 0:02:58.2]} 5. Nc3 {[%clk 0:03:00.6]}
5... Nc6 {[%clk 0:02:58]} 6. f3 {[%clk 0:02:57.5]} 6... e5 {[%clk 0:02:55.9]} 7.
Nb3 {[%clk 0:02:55.4]} 7... Be7 {[%clk 0:02:55.4]} 8. Be3 {[%clk 0:02:54.4]}
8... O-O {[%clk 0:02:50.4]} 9. Qd2 {[%clk 0:02:52]} 9... Be6 {[%clk 0:02:50.8]}
10. O-O-O {[%clk 0:02:51.1]} 10... a5 {[%clk 0:02:49.6]} 11. a4 {[%clk
0:02:46.8]} 11... Nb4 {[%clk 0:02:45.2]} 12. Kb1 {[%clk 0:02:40.9]} 12... d5
{[%clk 0:02:29.4]} 13. exd5 {[%clk 0:02:35.9]} 13... Nfxd5 {[%clk 0:02:24]} 14.
Nxd5 {[%clk 0:02:33.3]} 14... Bxd5 {[%clk 0:01:56.7]} 15. Bb5 {[%clk 0:02:12]}
15... Qc8 {[%clk 0:01:40.3]} 16. Nc1 {[%clk 0:00:43.2]} 16... Bc6 {[%clk
0:01:18.1]} 17. Qe2 {[%clk 0:00:12.1]} 17... Bxb5 {[%clk 0:01:00.7]} 18. axb5
{[%clk 0:00:10.8]} 18... a4 {[%clk 0:00:52]} 19. c3 {[%clk 0:00:06.6]} 19...
Qf5+ {[%clk 0:00:49]} 20. Nd3 {[%clk 0:00:06]} 20... Nd5 {[%clk 0:00:37.2]} 21.
Bd2 {[%clk 0:00:05.6]} 21... a3 {[%clk 0:00:21.9]} 22. Qe4 {[%clk 0:00:06]}
22... Qd7 {[%clk 0:00:14.3]} 23. c4 {[%clk 0:00:04.3]} 23... Nf6 {[%clk
0:00:12.1]} 24. Nxe5 {[%clk 0:00:04]} 24... Qe6 {[%clk 0:00:09.7]} 25. Qe3
{[%clk 0:00:02.7]} 25... axb2 {[%clk 0:00:09.8]} 26. Rhe1 {[%clk 0:00:01.8]}
26... Ra3 {[%clk 0:00:09.7]} 27. Qd4 {[%clk 0:00:01.4]} 27... Rd8 {[%clk
0:00:09]} 28. Qxb2 {[%clk 0:00:01.8]} 28... Qf5+ {[%clk 0:00:08.2]} 0-1

[Event "*** SCC Grand Prix: Titled Tuesday Blitz"]
[Site "Chess.com"]
[Date "2020.08.25"]
[Round "7"]
[White "Chessdreamer2020"]
[Black "ajdemipopushi"]
[Result "1-0"]
[WhiteElo "2477"]
[BlackElo "2286"]
[TimeControl "180+1"]
[EndTime "11:19:38 PDT"]
[Termination "Chessdreamer2020 won on time"]

1. e4 {[%clk 0:02:46]} 1... c5 {[%clk 0:02:59.1]} 2. Nf3 {[%clk 0:02:45.5]} 2...
g6 {[%clk 0:02:59.4]} 3. d4 {[%clk 0:02:45.1]} 3... cxd4 {[%clk 0:02:59.7]} 4.
Qxd4 {[%clk 0:02:45.3]} 4... Nf6 {[%clk 0:02:59.7]} 5. e5 {[%clk 0:02:45.7]}
5... Nc6 {[%clk 0:03:00]} 6. Qa4 {[%clk 0:02:46.3]} 6... Nd5 {[%clk 0:02:56.3]}
7. Qe4 {[%clk 0:02:46.7]} 7... Nb6 {[%clk 0:02:47.3]} 8. Nc3 {[%clk 0:02:46.6]}
8... Bg7 {[%clk 0:02:46.4]} 9. Bf4 {[%clk 0:02:46.4]} 9... O-O {[%clk
0:02:39.8]} 10. O-O-O {[%clk 0:02:45.2]} 10... d5 {[%clk 0:02:39.4]} 11. Nxd5
{[%clk 0:02:41.5]} 11... Nxd5 {[%clk 0:02:26.7]} 12. Qxd5 {[%clk 0:02:27]} 12...
Qc7 {[%clk 0:02:24]} 13. Bb5 {[%clk 0:02:08.4]} 13... Bg4 {[%clk 0:01:26.6]} 14.
Bxc6 {[%clk 0:01:59.3]} 14... bxc6 {[%clk 0:01:26.2]} 15. Qc5 {[%clk 0:01:51]}
15... Rab8 {[%clk 0:01:16.8]} 16. Rhe1 {[%clk 0:01:44.4]} 16... Bxf3 {[%clk
0:01:05]} 17. gxf3 {[%clk 0:01:43.8]} 17... Rb5 {[%clk 0:01:05.3]} 18. Qe3
{[%clk 0:00:57.2]} 18... Qa5 {[%clk 0:00:56.9]} 19. Kb1 {[%clk 0:00:55.2]} 19...
Rfb8 {[%clk 0:00:49]} 20. b3 {[%clk 0:00:55.5]} 20... f6 {[%clk 0:00:33.9]} 21.
Qd2 {[%clk 0:00:43.5]} 21... Qa3 {[%clk 0:00:27.9]} 22. Qc1 {[%clk 0:00:37.5]}
22... Qa6 {[%clk 0:00:21.3]} 23. exf6 {[%clk 0:00:32.5]} 23... Bxf6 {[%clk
0:00:21.2]} 24. Bxb8 {[%clk 0:00:32.2]} 24... Rxb8 {[%clk 0:00:17.9]} 25. c3
{[%clk 0:00:28.7]} 25... Qa5 {[%clk 0:00:15.8]} 26. Rd3 {[%clk 0:00:26.4]} 26...
Kf7 {[%clk 0:00:09.1]} 27. Qe3 {[%clk 0:00:23.7]} 27... Qa3 {[%clk 0:00:04.7]}
28. Qe6+ {[%clk 0:00:21.8]} 28... Kg7 {[%clk 0:00:04.6]} 29. Qc4 {[%clk
0:00:21.4]} 29... Rb6 {[%clk 0:00:01.8]} 30. Re2 {[%clk 0:00:17.6]} 1-0

[Event "*** SCC Grand Prix: Titled Tuesday Blitz"]
[Site "Chess.com"]
[Date "2020.08.25"]
[Round "7"]
[White "Anton_Zhukov04"]
[Black "parintele_chess"]
[Result "1-0"]
[WhiteElo "2230"]
[BlackElo "2142"]
[TimeControl "180+1"]
[EndTime "11:19:38 PDT"]
[Termination "Anton_Zhukov04 won by resignation"]

1. d4 {[%clk 0:03:00.9]} 1... Nf6 {[%clk 0:02:59.5]} 2. c4 {[%clk 0:03:01.2]}
2... g6 {[%clk 0:02:58.8]} 3. Nc3 {[%clk 0:03:00.8]} 3... Bg7 {[%clk 0:02:59.1]}
4. e4 {[%clk 0:03:00.9]} 4... d6 {[%clk 0:02:59.4]} 5. Be2 {[%clk 0:03:01.5]}
5... O-O {[%clk 0:02:59]} 6. Be3 {[%clk 0:03:02.1]} 6... Nc6 {[%clk 0:02:58.3]}
7. d5 {[%clk 0:03:01.1]} 7... Ne5 {[%clk 0:02:58.3]} 8. h3 {[%clk 0:03:01.2]}
8... c6 {[%clk 0:02:50.5]} 9. Nf3 {[%clk 0:03:00.4]} 9... Nxf3+ {[%clk
0:02:47.8]} 10. Bxf3 {[%clk 0:03:01.3]} 10... cxd5 {[%clk 0:02:48.4]} 11. exd5
{[%clk 0:03:01.9]} 11... Nd7 {[%clk 0:02:44.3]} 12. O-O {[%clk 0:02:57.7]} 12...
Nc5 {[%clk 0:02:39.1]} 13. Bd4 {[%clk 0:02:54.4]} 13... Bf5 {[%clk 0:02:31.5]}
14. Bxg7 {[%clk 0:02:49.9]} 14... Kxg7 {[%clk 0:02:31.1]} 15. Qd4+ {[%clk
0:02:49.1]} 15... Kg8 {[%clk 0:02:24.7]} 16. b4 {[%clk 0:02:48.6]} 16... Na6
{[%clk 0:02:20.7]} 17. a3 {[%clk 0:02:48.3]} 17... Qb6 {[%clk 0:02:13.7]} 18.
Qf4 {[%clk 0:02:33.8]} 18... Rac8 {[%clk 0:02:03.4]} 19. Rfc1 {[%clk 0:02:08.5]}
19... Bd3 {[%clk 0:01:37.9]} 20. Na4 {[%clk 0:02:04.7]} 20... Qd8 {[%clk
0:01:35]} 21. Nb2 {[%clk 0:01:54.7]} 21... Bf5 {[%clk 0:01:30]} 22. Bg4 {[%clk
0:01:54.4]} 22... Bxg4 {[%clk 0:01:24]} 23. hxg4 {[%clk 0:01:53.8]} 23... b5
{[%clk 0:01:17.1]} 24. cxb5 {[%clk 0:01:50.7]} 24... Nc7 {[%clk 0:01:17.2]} 25.
a4 {[%clk 0:01:32.5]} 25... Nxd5 {[%clk 0:01:13.4]} 26. Qd4 {[%clk 0:01:32.8]}
26... Nf6 {[%clk 0:01:08.7]} 27. g5 {[%clk 0:01:32.1]} 27... Nd7 {[%clk
0:01:06.1]} 28. Qxa7 {[%clk 0:01:28.7]} 28... Ne5 {[%clk 0:00:58]} 29. Qe3
{[%clk 0:01:26.1]} 29... Qd7 {[%clk 0:00:47.5]} 30. b6 {[%clk 0:01:23.7]} 30...
Qf5 {[%clk 0:00:34.6]} 31. Rxc8 {[%clk 0:01:10.3]} 31... Rxc8 {[%clk 0:00:34.1]}
32. b7 {[%clk 0:01:10.6]} 32... Rb8 {[%clk 0:00:32.4]} 33. Qa7 {[%clk
0:01:08.5]} 33... Nc6 {[%clk 0:00:28.4]} 34. Qb6 {[%clk 0:01:05.2]} 34... Qc2
{[%clk 0:00:25.2]} 35. Nd1 {[%clk 0:00:52.2]} 35... Kg7 {[%clk 0:00:09.1]} 36.
a5 {[%clk 0:00:46.5]} 36... Nd8 {[%clk 0:00:05.3]} 37. Qd4+ {[%clk 0:00:45.7]}
37... e5 {[%clk 0:00:05]} 38. Qxd6 {[%clk 0:00:44.3]} 38... Nxb7 {[%clk
0:00:05.3]} 39. Qxb8 {[%clk 0:00:43.8]} 1-0

[Event "*** SCC Grand Prix: Titled Tuesday Blitz"]
[Site "Chess.com"]
[Date "2020.08.25"]
[Round "7"]
[White "mfwagnerpeixoto"]
[Black "WinstonSilvakov"]
[Result "0-1"]
[WhiteElo "2226"]
[BlackElo "2120"]
[TimeControl "180+1"]
[EndTime "11:19:38 PDT"]
[Termination "WinstonSilvakov won by checkmate"]

1. d4 {[%clk 0:03:00.9]} 1... Nf6 {[%clk 0:03:00.9]} 2. Nf3 {[%clk 0:03:01.8]}
2... d6 {[%clk 0:02:59.5]} 3. c3 {[%clk 0:03:01.6]} 3... g6 {[%clk 0:02:59.2]}
4. Qc2 {[%clk 0:03:01]} 4... Bg7 {[%clk 0:03:00.1]} 5. e4 {[%clk 0:03:00.4]}
5... c5 {[%clk 0:02:57]} 6. dxc5 {[%clk 0:02:59.7]} 6... dxc5 {[%clk 0:02:55.9]}
7. Be2 {[%clk 0:03:00.6]} 7... Nc6 {[%clk 0:02:54.7]} 8. O-O {[%clk 0:02:59.8]}
8... Qc7 {[%clk 0:02:54.7]} 9. Be3 {[%clk 0:02:57.7]} 9... b6 {[%clk 0:02:41.9]}
10. h3 {[%clk 0:02:57.3]} 10... Bb7 {[%clk 0:02:38.1]} 11. a4 {[%clk 0:02:52.2]}
11... h6 {[%clk 0:02:16.5]} 12. Na3 {[%clk 0:02:50]} 12... a6 {[%clk 0:02:15.5]}
13. Nc4 {[%clk 0:02:37.5]} 13... Nd7 {[%clk 0:02:14.7]} 14. Rfe1 {[%clk
0:02:32.8]} 14... O-O {[%clk 0:02:04.3]} 15. Bf1 {[%clk 0:02:32.6]} 15... Kh7
{[%clk 0:02:03.3]} 16. g3 {[%clk 0:02:24.6]} 16... Nde5 {[%clk 0:02:01.8]} 17.
Nfxe5 {[%clk 0:02:19.1]} 17... Nxe5 {[%clk 0:02:02.7]} 18. Nxe5 {[%clk
0:02:06.2]} 18... Bxe5 {[%clk 0:02:03.6]} 19. f4 {[%clk 0:02:01.2]} 19... Bg7
{[%clk 0:02:02.8]} 20. Bg2 {[%clk 0:01:59.9]} 20... Rad8 {[%clk 0:01:52.3]} 21.
Rad1 {[%clk 0:01:44.7]} 21... b5 {[%clk 0:01:37.2]} 22. axb5 {[%clk 0:01:38]}
22... axb5 {[%clk 0:01:38.1]} 23. Bf2 {[%clk 0:01:28.2]} 23... e5 {[%clk
0:01:22.7]} 24. f5 {[%clk 0:01:19.9]} 24... Bf6 {[%clk 0:01:22.2]} 25. Be3
{[%clk 0:01:11.1]} 25... gxf5 {[%clk 0:01:21.5]} 26. exf5 {[%clk 0:01:08.4]}
26... Rg8 {[%clk 0:01:17.6]} 27. Kh2 {[%clk 0:00:59.1]} 27... Rxg3 {[%clk
0:00:51.4]} 28. Rg1 {[%clk 0:00:13.7]} 28... Rxe3 {[%clk 0:00:45.5]} 29. Rxd8
{[%clk 0:00:12.3]} 29... Bxd8 {[%clk 0:00:43.4]} 30. f6+ {[%clk 0:00:11.5]}
30... Kh8 {[%clk 0:00:42.3]} 31. Qf2 {[%clk 0:00:09.3]} 31... e4+ {[%clk
0:00:36.6]} 32. Kh1 {[%clk 0:00:09.6]} 32... Rxh3+ {[%clk 0:00:28.7]} 33. Bxh3
{[%clk 0:00:09.3]} 33... e3+ {[%clk 0:00:28.8]} 34. Qg2 {[%clk 0:00:06.3]} 34...
Qg3 {[%clk 0:00:25.6]} 35. Qxb7 {[%clk 0:00:04.2]} 35... Qxh3# {[%clk
0:00:25.3]} 0-1